bitfinex/quotes_BTCUSD_20250709
["timestamp","ask_amount","ask_price","bid_price","bid_amount"]
[1752096244938,0.47615093,111390.0,111380.0,0.50013584]
[1752096245143,0.47615093,111390.0,111380.0,0.19534192]
[1752096245361,0.47615093,111390.0,111380.0,0.50013584]
[1752096249498,0.47615093,111390.0,111380.0,0.55363313]
[1752096249807,0.47615093,111390.0,111380.0,0.24883921]
[1752096250020,0.47615093,111390.0,111380.0,0.55363313]
[1752096250436,0.47615093,111390.0,111380.0,0.49177402]
[1752096250631,0.47615093,111390.0,111380.0,0.68031758]
[1752096251684,0.47615093,111390.0,111380.0,0.37552366]
[1752096251953,0.46717363,111390.0,111380.0,0.67133947]
[1752096252180,0.46717363,111390.0,111380.0,0.68929577]
[1752096252862,0.46717363,111390.0,111380.0,0.68031766]
[1752096253272,0.45819625,111390.0,111380.0,0.49177402]
[1752096253444,0.4494369,111390.0,111380.0,0.73317127]
[1752096253657,0.4494369,111390.0,111380.0,0.7248148]
[1752096253828,0.4494369,111390.0,111380.0,0.67133947]
[1752096254031,0.4494369,111390.0,111380.0,0.68031774]
[1752096254400,0.4494369,111390.0,111380.0,0.68929593]
[1752096255088,0.4494369,111390.0,111380.0,0.60904239]
[1752096255917,0.75423082,111390.0,111380.0,0.10672656]
[1752096256125,0.4494369,111390.0,111380.0,0.10672656]
[1752096256970,0.75433485,111390.0,111380.0,0.10672656]
[1752096257195,0.75432485,111390.0,111380.0,0.16019793]
[1752096257412,0.75432485,111390.0,111380.0,0.24876088]
[1752096258029,0.75432485,111390.0,111380.0,0.16855382]
[1752096258227,0.75432485,111390.0,111380.0,0.16019793]
[1752096258658,0.75432485,111390.0,111380.0,0.16855292]
[1752096258877,0.4494269,111390.0,111380.0,0.16855292]
[1752096259119,0.75435473,111390.0,111380.0,0.16855292]
[1752096259477,0.4494269,111390.0,111380.0,0.16019793]
[1752096259710,0.76326586,111390.0,111380.0,0.16855258]
[1752096259910,0.45833803,111390.0,111380.0,0.16855258]
[1752096260115,0.76326586,111390.0,111380.0,0.16855258]
[1752096260316,0.76326586,111390.0,111380.0,0.16853469]
[1752096260519,0.76326586,111390.0,111380.0,0.11506332]
[1752096260884,0.75856586,111390.0,111380.0,0.11506332]
[1752096261093,0.76326586,111390.0,111380.0,0.11506332]
[1752096261481,0.45833803,111390.0,111380.0,0.11506332]
[1752096261691,0.76326586,111390.0,111380.0,0.11506332]
[1752096262218,0.76326586,111390.0,111380.0,0.10670867]
[1752096262422,0.46176626,111390.0,111380.0,0.11506156]
[1752096265255,0.46176626,111390.0,111380.0,0.11505652]
[1752096266499,0.76669409,111390.0,111380.0,0.11505652]
[1752096267558,0.46176626,111390.0,111380.0,0.11505652]
[1752096267774,0.76669409,111390.0,111380.0,0.11505652]
[1752096271149,0.76669409,111390.0,111380.0,0.12055652]
[1752096272766,0.46176626,111390.0,111380.0,0.12055652]
[1752096273397,0.76669409,111390.0,111380.0,0.12055652]
[1752096274501,0.76669409,111390.0,111380.0,0.12056334]
[1752096277065,0.76669409,111390.0,111380.0,0.11221157]
[1752096277291,0.76669409,111390.0,111380.0,0.12056735]
[1752096278276,1.16305885,111390.0,111380.0,0.12056735]
[1752096278482,1.16305885,111390.0,111380.0,0.03056735]
[1752096280112,1.16305885,111390.0,111380.0,0.03056813]
[1752096280547,1.16505885,111390.0,111380.0,0.03056813]
[1752096281360,1.07362192,111390.0,111380.0,0.03056813]
[1752096282797,0.95466763,111390.0,111380.0,0.03056813]
[1752096283002,0.95466763,111390.0,111380.0,0.03057146]
[1752096283624,0.98164563,111390.0,111380.0,0.03057146]
[1752096285394,0.98264563,111390.0,111380.0,0.03057146]
[1752096285571,0.99718648,111390.0,111380.0,0.03057146]
[1752096285799,1.11112341,111390.0,111380.0,1e-08]
[1752096286236,1.01968648,111390.0,111380.0,1e-08]
[1752096288994,1.40968648,111390.0,111380.0,1e-08]
[1752096291554,1.30968648,111390.0,111380.0,1e-08]
[1752096291702,1.48923581,111390.0,111380.0,1e-08]
[1752096294671,1.98543581,111390.0,111380.0,1e-08]
[1752096294873,1.98576227,111390.0,111380.0,1e-08]
[1752096295085,0.24783915,111370.0,111360.0,0.09]
[1752096295264,1.0886982,111370.0,111360.0,0.09004681]
[1752096295666,1.1156812,111370.0,111360.0,0.09004681]
[1752096296500,1.1166812,111370.0,111360.0,4.681e-05]
[1752096296906,0.83824096,111370.0,111360.0,4.681e-05]
[1752096297715,0.52151561,111360.0,111350.0,0.07169327]
[1752096297923,0.75219254,111360.0,111350.0,0.08838671]
[1752096298748,0.96787254,111360.0,111350.0,0.08838671]
[1752096298955,0.96787254,111360.0,111350.0,0.08938671]
[1752096299292,0.96787254,111360.0,111350.0,0.01769344]
[1752096300272,0.86787254,111360.0,111350.0,0.01769344]
[1752096300484,0.87685226,111360.0,111350.0,0.01769344]
[1752096300685,0.57171407,111360.0,111350.0,0.01769056]
[1752096300915,0.87685226,111360.0,111350.0,0.01769056]
[1752096301092,1.29722738,111360.0,111350.0,0.01769056]
[1752096301504,0.99208919,111360.0,111350.0,0.01769056]
[1752096302487,0.90065226,111360.0,111350.0,0.01769056]
[1752096302917,0.80277226,111360.0,111350.0,0.01769056]
[1752096303127,0.98236996,111360.0,111350.0,0.01769056]
[1752096303884,0.67513177,111360.0,111350.0,0.01769056]
[1752096304066,1.28540815,111360.0,111350.0,0.01769056]
[1752096304697,0.67513177,111360.0,111350.0,0.01769056]
[1752096304906,1.28540815,111360.0,111350.0,0.01769056]
[1752096306641,1.28492815,111360.0,111350.0,0.01769056]
[1752096306767,1.28540815,111360.0,111350.0,0.01769056]
[1752096306967,1.28540815,111360.0,111350.0,0.02603739]
[1752096308588,1.28540815,111360.0,111350.0,0.02604077]
[1752096309422,1.99578974,111360.0,111330.0,0.04]
[1752096309629,0.94999569,111340.0,111330.0,0.0483495]
[1752096309854,0.79859835,111340.0,111330.0,0.0483495]
[1752096310247,0.80747186,111340.0,111330.0,0.0483495]
[1752096310427,0.83446386,111340.0,111330.0,0.0483495]
[1752096310632,0.83446386,111340.0,111330.0,0.0493495]
[1752096311884,1.13960205,111340.0,111330.0,0.0483495]
[1752096312088,0.83446386,111340.0,111330.0,0.0483495]
[1752096312286,0.83446386,111340.0,111330.0,0.0523495]
[1752096312494,1.13960205,111340.0,111330.0,0.0483495]
[1752096312726,1.13960205,111340.0,111300.0,0.05074]
[1752096312727,0.19975563,111310.0,111300.0,0.05074]
[1752096312931,0.73603075,111310.0,111300.0,0.0486]
[1752096313144,0.73603075,111310.0,111300.0,0.0239]
[1752096313355,0.18867907,111300.0,111290.0,0.05074]
[1752096313556,0.41033144,111300.0,111290.0,0.05074]
[1752096313755,0.419316,111300.0,111290.0,0.05074]
[1752096314132,0.419316,111300.0,111290.0,0.0508805]
[1752096314746,0.72705419,111300.0,111290.0,0.0508805]
[1752096314908,0.73583621,111300.0,111290.0,0.0240405]
[1752096315120,0.95155621,111300.0,111290.0,0.0240405]
[1752096315320,0.95155621,111300.0,111290.0,0.0001405]
[1752096315517,1.3013844,111300.0,111290.0,0.0041405]
[1752096315844,0.99675621,111300.0,111290.0,0.0041405]
[1752096316083,0.99675621,111300.0,111290.0,0.0001405]
[1752096316311,0.99675621,111300.0,111290.0,0.0011405]
[1752096316512,1.31643525,111300.0,111290.0,0.0011405]
[1752096316887,1.31643525,111300.0,111290.0,0.0001405]
[1752096317091,1.31643525,111300.0,111270.0,0.0053554]
[1752096317092,0.20028891,111280.0,111270.0,0.0053554]
[1752096317330,0.73606403,111280.0,111270.0,0.00549593]
[1752096317553,0.75866403,111280.0,111270.0,0.00549593]
[1752096317915,0.77320488,111280.0,111270.0,0.00549593]
[1752096318738,0.80083322,111280.0,111270.0,0.00649593]
[1752096319141,0.80085322,111280.0,111270.0,0.00949593]
[1752096319345,0.82345322,111280.0,111270.0,0.00949593]
[1752096320523,0.49571503,111280.0,111270.0,0.00949593]
[1752096320710,0.80085322,111280.0,111270.0,0.00949593]
[1752096321510,0.80085322,111280.0,111270.0,0.02614895]
[1752096321686,0.49571503,111280.0,111270.0,0.02614895]
[1752096322248,0.80085322,111280.0,111270.0,0.02614895]
[1752096322455,0.82345322,111280.0,111270.0,0.02614895]
[1752096322651,0.91489015,111280.0,111270.0,0.02614895]
[1752096323103,0.82345322,111280.0,111270.0,0.02614895]
[1752096324597,0.54532203,111280.0,111270.0,0.02614895]
[1752096324837,0.85046022,111280.0,111270.0,0.03146841]
[1752096325835,0.85046022,111280.0,111270.0,0.03046841]
[1752096326261,0.25107079,111270.0,111260.0,0.0004]
[1752096326470,0.74168591,111270.0,111260.0,0.00871955]
[1752096326643,0.74168591,111270.0,111260.0,0.03151955]
[1752096326851,0.43654772,111270.0,111260.0,0.03151955]
[1752096327054,0.29730772,111270.0,111260.0,0.00871955]
[1752096327258,0.74168591,111270.0,111260.0,0.00871955]
[1752096328051,0.74168591,111270.0,111260.0,0.01171955]
[1752096328511,0.83312284,111270.0,111260.0,0.01171955]
[1752096328654,0.76428591,111270.0,111260.0,0.01171955]
[1752096329027,0.60244591,111270.0,111260.0,0.01171955]
[1752096329242,0.74168591,111270.0,111260.0,0.01171955]
[1752096329987,0.43654772,111270.0,111260.0,0.01171955]
[1752096330192,0.74168591,111270.0,111260.0,0.01171955]
[1752096330404,0.78657057,111270.0,111260.0,0.01171955]
[1752096332007,0.78657057,111270.0,111260.0,0.01171794]
[1752096332498,0.74168591,111270.0,111260.0,0.01171794]
[1752096333291,0.74168591,111270.0,111260.0,0.01051994]
[1752096334236,0.74168591,111270.0,111260.0,0.05765994]
[1752096334852,0.74168591,111270.0,111260.0,0.0576646]
[1752096335302,0.74168591,111270.0,111260.0,0.0358646]
[1752096335722,0.73668591,111270.0,111260.0,0.0358646]
[1752096337642,0.76369491,111270.0,111260.0,0.0337246]
[1752096339161,0.75784776,111270.0,111260.0,0.0337246]
[1752096339591,0.76683474,111270.0,111260.0,0.0337246]
[1752096340252,0.46169655,111270.0,111260.0,0.0337246]
[1752096340476,0.76683474,111270.0,111260.0,0.0337246]
[1752096340903,0.76683474,111270.0,111260.0,0.03375256]
[1752096341357,0.61491406,111270.0,111260.0,0.03375256]
[1752096341576,0.75415406,111270.0,111260.0,0.03375256]
[1752096346581,0.30717587,111270.0,111260.0,0.36313075]
[1752096346781,0.28915377,111270.0,111260.0,0.36634075]
[1752096347037,0.28915377,111270.0,111260.0,0.91306276]
[1752096347038,0.09479298,111270.0,111260.0,0.91306276]
[1752096347201,0.15717292,111270.0,111260.0,0.91306276]
[1752096347401,0.16615958,111270.0,111260.0,0.91306276]
[1752096347722,0.15717292,111270.0,111260.0,1.00306276]
[1752096347931,0.16615958,111270.0,111260.0,1.05662081]
[1752096348132,0.16615958,111270.0,111260.0,1.05541881]
[1752096348337,0.15717292,111270.0,111260.0,1.05741881]
[1752096348537,0.15717292,111270.0,111260.0,1.05941881]
[1752096348743,0.15717292,111270.0,111260.0,1.13962587]
[1752096349153,0.16615958,111270.0,111260.0,1.13962587]
[1752096349365,0.16615958,111270.0,111260.0,1.05941881]
[1752096349501,0.14569983,111270.0,111260.0,1.05941881]
[1752096350072,0.15468609,111270.0,111260.0,1.05941881]
[1752096351014,0.15713292,111270.0,111260.0,1.05941881]
[1752096351219,0.14814642,111270.0,111260.0,1.05941881]
[1752096351444,0.1661195,111270.0,111260.0,1.05933785]
[1752096351621,0.00012595,111280.0,111270.0,0.59604342]
[1752096351833,0.00012595,111280.0,111270.0,1.28652686]
[1752096352074,0.13928595,111280.0,111270.0,1.2063198]
[1752096352425,0.13928595,111280.0,111270.0,1.2864828]
[1752096352633,0.13928595,111280.0,111270.0,1.28648625]
[1752096352834,0.14128595,111280.0,111270.0,1.28648625]
[1752096353464,0.00212595,111280.0,111270.0,1.28648625]
[1752096353666,0.14128595,111280.0,111270.0,1.28648625]
[1752096354626,0.13928595,111280.0,111270.0,1.28648625]
[1752096355296,0.14827164,111280.0,111270.0,1.28648625]
[1752096355504,0.14827156,111280.0,111270.0,1.28648625]
[1752096356170,0.15725725,111280.0,111270.0,1.28648625]
[1752096356992,0.15925725,111280.0,111270.0,1.28648625]
[1752096357573,0.15925725,111280.0,111270.0,1.33981217]
[1752096357768,0.15027156,111280.0,111270.0,1.33981217]
[1752096358373,0.15925733,111280.0,111270.0,1.33981217]
[1752096359474,0.15027156,111280.0,111270.0,1.33981217]
[1752096359798,0.15925733,111280.0,111270.0,1.33981217]
[1752096360682,0.16824334,111280.0,111270.0,1.33981217]
[1752096360909,0.16824326,111280.0,111270.0,1.33981217]
[1752096361110,0.15925733,111280.0,111270.0,1.33981217]
[1752096361703,0.27847933,111330.0,111280.0,0.0442]
[1752096361885,0.31604141,111330.0,111320.0,0.88322328]
[1752096362108,0.29347936,111330.0,111320.0,0.91017171]
[1752096362388,0.26648436,111330.0,111320.0,0.91017171]
[1752096362561,0.25750222,111330.0,111320.0,0.9357938]
[1752096362845,0.10940024,111330.0,111320.0,0.9357938]
[1752096363060,0.15704339,111330.0,111320.0,0.9367938]
[1752096363259,0.0001262,111330.0,111320.0,0.9367938]
[1752096363425,0.14818785,111330.0,111320.0,0.9367938]
[1752096363796,0.00910785,111330.0,111320.0,0.97676858]
[1752096364001,0.00910785,111330.0,111320.0,0.97152858]
[1752096364198,0.14818777,111330.0,111320.0,0.97576858]
[1752096364414,0.1402062,111330.0,111320.0,0.97676858]
[1752096364643,0.14918777,111330.0,111320.0,0.97676858]
[1752096364901,0.14818777,111330.0,111320.0,0.97676858]
[1752096365261,0.1392062,111330.0,111320.0,0.97976858]
[1752096365454,0.14818777,111330.0,111320.0,0.97976858]
[1752096366273,0.14818777,111330.0,111320.0,0.98858946]
[1752096366524,0.14818777,111330.0,111320.0,0.98855079]
[1752096367157,0.15716951,111330.0,111320.0,0.98855079]
[1752096367449,0.14818777,111330.0,111320.0,0.94857601]
[1752096367666,0.14818777,111330.0,111320.0,0.98855079]
[1752096368741,0.14818785,111330.0,111320.0,0.94857601]
[1752096368957,0.14818777,111330.0,111320.0,0.94857601]
[1752096369703,0.1392062,111330.0,111320.0,0.94857601]
[1752096371413,0.14818777,111330.0,111320.0,0.98855079]
[1752096372138,0.14818777,111330.0,111320.0,0.94892201]
[1752096372343,0.1392062,111330.0,111320.0,0.94892201]
[1752096372471,0.1392062,111330.0,111320.0,0.98875363]
[1752096372676,0.14818785,111330.0,111320.0,0.98875363]
[1752096372899,0.1392062,111330.0,111320.0,0.98875363]
[1752096373408,0.14818785,111330.0,111320.0,0.98875363]
[1752096373607,0.14818785,111330.0,111320.0,1.07875363]
[1752096374023,0.1392062,111330.0,111320.0,1.07875363]
[1752096374848,0.14818777,111330.0,111320.0,1.07875363]
[1752096375070,0.1392062,111330.0,111320.0,1.07875363]
[1752096375532,0.14818785,111330.0,111320.0,1.13208492]
[1752096376783,0.1392062,111330.0,111320.0,1.13208492]
[1752096376961,0.0001262,111330.0,111320.0,1.49209879]
[1752096377157,0.0001262,111330.0,111320.0,1.43877287]
[1752096377358,0.1390862,111330.0,111320.0,2.0430008]
[1752096377563,0.08612528,111360.0,111350.0,0.59792492]
[1752096377564,0.0053554,111360.0,111350.0,0.59792492]
[1752096377831,0.1443154,111360.0,111350.0,0.91966936]
[1752096378006,0.1443154,111360.0,111350.0,0.95957012]
[1752096378203,0.1443154,111360.0,111350.0,0.9595715]
[1752096378852,0.1443154,111360.0,111350.0,0.94710163]
[1752096379270,0.1443154,111360.0,111350.0,0.98700377]
[1752096379846,0.1443154,111360.0,111350.0,1.04020479]
[1752096379989,0.1443154,111360.0,111350.0,1.08010418]
[1752096380195,0.1443154,111360.0,111350.0,1.08110418]
[1752096380397,0.0053554,111360.0,111350.0,1.00130265]
[1752096380609,0.1443154,111360.0,111350.0,1.08210418]
[1752096380838,0.1443154,111360.0,111350.0,1.00230265]
[1752096381036,0.1443154,111360.0,111350.0,1.08210418]
[1752096381237,0.1443154,111360.0,111350.0,1.08212077]
[1752096382092,0.1442754,111360.0,111350.0,1.08212077]
[1752096383139,0.0053554,111360.0,111350.0,1.08212077]
[1752096383354,0.1442754,111360.0,111350.0,1.08212077]
[1752096385861,0.1442354,111360.0,111350.0,1.08212077]
[1752096385982,0.0053554,111360.0,111350.0,1.08212077]
[1752096386177,0.1442354,111360.0,111350.0,1.02891975]
[1752096387141,0.1442354,111360.0,111350.0,1.08209434]
[1752096387681,0.1442354,111360.0,111350.0,1.02891952]
[1752096389431,0.16219395,111360.0,111350.0,1.02891952]
[1752096389923,0.16219387,111360.0,111350.0,1.02891952]
[1752096391020,0.17117335,111360.0,111350.0,0.72378133]
[1752096391152,0.17117335,111360.0,111350.0,1.02891952]
[1752096391558,0.16219387,111360.0,111350.0,1.02891952]
[1752096392540,0.16219387,111360.0,111350.0,0.94911799]
[1752096392898,0.17117335,111360.0,111350.0,0.94911799]
[1752096393537,0.16219387,111360.0,111350.0,1.05606074]
[1752096393739,0.17117335,111360.0,111350.0,1.05606074]
[1752096394083,0.17117335,111360.0,111350.0,0.94911799]
[1752096394212,0.16219387,111360.0,111350.0,0.94911799]
[1752096394710,0.8593211,111360.0,111350.0,0.09853942]
[1752096394921,0.85706815,111360.0,111350.0,0.09853942]
[1752096395092,0.85706815,111360.0,111350.0,0.15183525]
[1752096395504,0.55192996,111360.0,111350.0,0.07191844]
[1752096395702,0.55192996,111360.0,111350.0,0.05861322]
[1752096395928,0.55192996,111360.0,111350.0,0.05761322]
[1752096396136,0.85806815,111360.0,111350.0,0.05761322]
[1752096396275,0.85806815,111360.0,111330.0,0.07991681]
[1752096396276,0.23492129,111340.0,111330.0,0.07991681]
[1752096396482,0.84272714,111340.0,111330.0,0.07991681]
[1752096396759,0.23552823,111330.0,111320.0,0.08034544]
[1752096396981,0.63210335,111330.0,111320.0,0.08034544]
[1752096397186,0.63210335,111330.0,111320.0,0.000346]
[1752096397319,0.32696516,111330.0,111320.0,0.000346]
[1752096397694,0.63210335,111330.0,111320.0,0.000346]
[1752096397896,0.94626664,111330.0,111320.0,0.000346]
[1752096398110,0.94570664,111330.0,111320.0,0.000346]
[1752096398277,0.94627664,111330.0,111320.0,0.000346]
[1752096399253,0.94727664,111330.0,111320.0,0.000346]
[1752096402380,0.97459836,111330.0,111320.0,0.000346]
[1752096402536,1.06603529,111330.0,111320.0,0.000346]
[1752096404172,0.19771668,111270.0,111260.0,0.02785]
[1752096404403,0.33655668,111270.0,111260.0,0.23321088]
[1752096404623,0.16580078,111270.0,111260.0,0.90531204]
[1752096404828,0.16580086,111270.0,111260.0,0.90531212]
[1752096405031,0.15681324,111270.0,111260.0,0.91429951]
[1752096405346,0.16181324,111270.0,111260.0,0.91429951]
[1752096405737,0.16580014,111270.0,111260.0,0.91429951]
[1752096406108,0.15681324,111270.0,111260.0,0.91629951]
[1752096406243,0.16580014,111270.0,111260.0,0.91629951]
[1752096406451,0.15981324,111270.0,111260.0,0.91629951]
[1752096406681,0.15681324,111270.0,111260.0,0.91629951]
[1752096406891,0.16580022,111270.0,111260.0,0.91629951]
[1752096407079,0.16580022,111270.0,111260.0,0.91829951]
[1752096407247,0.16580022,111270.0,111260.0,0.90931212]
[1752096407684,0.16580022,111270.0,111260.0,0.9182867]
[1752096407883,0.16580014,111270.0,111260.0,0.91828614]
[1752096408317,0.16580014,111270.0,111260.0,0.93489826]
[1752096408725,0.16580014,111270.0,111260.0,0.93165826]
[1752096408987,0.16580006,111270.0,111260.0,0.93165826]
[1752096409188,0.16580006,111270.0,111260.0,0.9136834]
[1752096409436,0.17478704,111270.0,111260.0,0.92267087]
[1752096409760,0.16580006,111270.0,111260.0,0.93165826]
[1752096409962,0.17478704,111270.0,111260.0,0.93165826]
[1752096410722,0.17478704,111270.0,111260.0,0.93164824]
[1752096411561,0.17478704,111270.0,111260.0,0.93488824]
[1752096411762,0.36351714,111270.0,111260.0,0.61177519]
[1752096411894,0.3455439,111270.0,111260.0,0.90468583]
[1752096412325,0.3455439,111270.0,111260.0,0.91367346]
[1752096412533,0.3455439,111270.0,111260.0,0.88208583]
[1752096412734,0.3455439,111270.0,111260.0,0.89107338]
[1752096412933,0.3455439,111270.0,111260.0,0.92266085]
[1752096413671,0.16580086,111270.0,111260.0,0.93164824]
[1752096413903,0.16580086,111270.0,111260.0,0.90467953]
[1752096414037,0.34554382,111270.0,111260.0,0.91366716]
[1752096414223,0.35453096,111270.0,111260.0,0.92265471]
[1752096414421,0.16580086,111270.0,111260.0,0.9316421]
[1752096414688,0.16580086,111270.0,111260.0,0.92589471]
[1752096414849,0.16580086,111270.0,111260.0,0.93488218]
[1752096415067,0.1568138,111270.0,111260.0,0.93488178]
[1752096415389,0.34554382,111270.0,111260.0,0.90467969]
[1752096415539,0.34554382,111270.0,111260.0,0.91366732]
[1752096415762,0.34554382,111270.0,111260.0,0.90467969]
[1752096415975,0.35453096,111270.0,111260.0,0.90467969]
[1752096416179,0.35453096,111270.0,111260.0,0.89569198]
[1752096416379,0.35453096,111270.0,111260.0,0.91366748]
[1752096416582,0.35453096,111270.0,111260.0,0.91366703]
[1752096416778,0.35453096,111270.0,111260.0,0.92265458]
[1752096416989,0.35453096,111270.0,111260.0,0.9046794]
[1752096417352,0.33915716,111270.0,111260.0,0.8820794]
[1752096417493,0.42160703,111270.0,111260.0,0.02833426]
[1752096418109,0.49339776,111270.0,111260.0,0.02833426]
[1752096419646,0.42160703,111270.0,111260.0,0.02833426]
[1752096420265,0.46850703,111270.0,111260.0,0.02833426]
[1752096420623,0.44420703,111270.0,111260.0,0.02833426]
[1752096422876,0.28016639,111270.0,111260.0,0.05173426]
[1752096423073,0.24821017,111270.0,111260.0,0.58830446]
[1752096423360,0.2023089,111300.0,111270.0,0.3861]
[1752096423495,0.10300101,111300.0,111290.0,0.52822951]
[1752096423853,0.00258,111300.0,111290.0,0.91651714]
[1752096424123,0.12138,111300.0,111290.0,0.91651714]
[1752096424906,0.12138,111300.0,111290.0,0.92935857]
[1752096425110,0.0359342,111310.0,111300.0,0.20664771]
[1752096425284,0.09873884,111320.0,111310.0,0.19764579]
[1752096425479,0.508598,111320.0,111310.0,0.20526487]
[1752096425994,0.49961554,111320.0,111310.0,0.21424878]
[1752096426199,0.49961554,111320.0,111310.0,0.20539115]
[1752096426406,0.49063284,111320.0,111310.0,0.2142267]
[1752096426606,0.49063284,111320.0,111310.0,0.2162367]
[1752096427482,0.49363284,111320.0,111310.0,0.2162367]
[1752096427684,0.49363284,111320.0,111310.0,0.22522053]
[1752096427931,0.49363284,111320.0,111310.0,0.02757442]
[1752096429213,0.49363284,111320.0,111310.0,0.01873887]
[1752096429527,0.49363284,111320.0,111310.0,0.01672887]
[1752096429736,0.49363284,111320.0,111310.0,0.0001262]
[1752096430150,0.94742479,111320.0,111310.0,0.0001262]
[1752096430348,1.27994526,111320.0,111310.0,1e-08]
[1752096430551,1.71994526,111320.0,111310.0,1e-08]
[1752096430723,0.19771668,111270.0,111260.0,0.09]
[1752096430942,0.42787361,111270.0,111260.0,0.09]
[1752096431721,0.17975912,111260.0,111250.0,0.58779569]
[1752096431931,0.28018384,111260.0,111250.0,0.24769114]
[1752096432067,0.28018384,111260.0,111250.0,0.25714862]
[1752096432496,0.28018384,111260.0,111250.0,0.59714862]
[1752096432668,0.28018384,111260.0,111250.0,0.54360593]
[1752096432875,0.28018384,111260.0,111250.0,0.59714862]
[1752096433073,0.09143693,111260.0,111250.0,0.64152525]
[1752096433278,0.00898561,111280.0,111270.0,0.2262066]
[1752096433500,0.14770577,111280.0,111270.0,0.55317304]
[1752096433700,0.14770569,111280.0,111270.0,0.55317304]
[1752096433933,0.14770577,111280.0,111270.0,0.89317304]
[1752096434139,0.13872,111280.0,111270.0,0.89317304]
[1752096434379,0.14770577,111280.0,111270.0,0.89317304]
[1752096434560,0.13872,111280.0,111270.0,0.89317304]
[1752096434761,0.23373,111290.0,111280.0,0.21177485]
[1752096434969,0.00898383,111310.0,111300.0,0.02012856]
[1752096435107,0.28009865,111310.0,111300.0,0.51173598]
[1752096435308,0.28009865,111310.0,111300.0,0.00509]
[1752096435309,0.44576926,111310.0,111300.0,0.00509]
[1752096435529,0.86260301,111310.0,111300.0,0.00509]
[1752096435972,0.79198234,111310.0,111300.0,0.00509]
[1752096436173,0.47400272,111310.0,111300.0,0.00509]
[1752096438415,0.19768099,111290.0,111280.0,0.34]
[1752096438818,0.42783841,111290.0,111280.0,0.34216]
[1752096439349,0.42783841,111290.0,111280.0,0.35114634]
[1752096439787,0.42783841,111290.0,111280.0,0.53287315]
[1752096439986,0.42783841,111290.0,111280.0,0.55084542]
[1752096440907,0.42783841,111290.0,111280.0,0.54185941]
[1752096441108,0.42783841,111290.0,111280.0,0.5508455]
[1752096441308,0.42783841,111290.0,111280.0,0.55983151]
[1752096441529,0.42783841,111290.0,111280.0,0.5508455]
[1752096442760,0.42783841,111290.0,111280.0,0.55983151]
[1752096442880,0.42783841,111290.0,111280.0,0.52388681]
[1752096443079,0.42783841,111290.0,111280.0,0.53287298]
[1752096443543,0.42783841,111290.0,111280.0,0.54185907]
[1752096443679,0.42783841,111290.0,111280.0,0.53985907]
[1752096443887,0.42783841,111290.0,111280.0,0.54085907]
[1752096444085,0.42783841,111290.0,111280.0,0.63085907]
[1752096444495,0.42783841,111290.0,111280.0,0.091]
[1752096444496,0.4954717,111290.0,111280.0,0.091]
[1752096444694,0.4954717,111290.0,111280.0,0.001]
[1752096444695,0.81345132,111290.0,111280.0,0.001]
[1752096444952,0.81345132,111290.0,111280.0,0.00774021]
[1752096445504,0.81345132,111290.0,111280.0,0.00674021]
[1752096445708,0.82626261,111290.0,111280.0,0.00100001]
[1752096445878,0.82226261,111290.0,111280.0,0.00100001]
[1752096446146,0.82526261,111290.0,111280.0,0.00100001]
[1752096446315,0.82526261,111290.0,111280.0,1e-08]
[1752096446563,0.82726261,111290.0,111280.0,1e-08]
[1752096448112,0.85468289,111290.0,111280.0,1e-08]
[1752096448752,0.53670327,111290.0,111280.0,1e-08]
[1752096448950,0.27614759,111290.0,111280.0,0.01671086]
[1752096449153,0.41482759,111290.0,111280.0,0.01671086]
[1752096449776,0.20670342,111270.0,111260.0,0.55299204]
[1752096449978,0.43682035,111270.0,111260.0,0.22649351]
[1752096450392,0.43682091,111270.0,111260.0,0.22649351]
[1752096451456,0.29814091,111270.0,111260.0,0.22649351]
[1752096451658,0.43682091,111270.0,111260.0,0.23548122]
[1752096452010,0.42783409,111270.0,111260.0,0.22749351]
[1752096452540,0.41884703,111270.0,111260.0,0.21850572]
[1752096452745,0.40985989,111270.0,111260.0,0.20951785]
[1752096453407,0.40985989,111270.0,111260.0,0.2685058]
[1752096453626,0.40985989,111270.0,111260.0,0.08874675]
[1752096455038,0.40985989,111270.0,111260.0,0.26850587]
[1752096455799,0.40985989,111270.0,111260.0,0.08874675]
[1752096456004,0.40985989,111270.0,111260.0,0.26850587]
[1752096457266,0.40985989,111270.0,111260.0,0.08874675]
[1752096457636,0.40985989,111270.0,111260.0,0.09549003]
[1752096458034,0.40985989,111270.0,111260.0,0.27524915]
[1752096459327,0.40985989,111270.0,111260.0,0.08650208]
[1752096459779,0.40985989,111270.0,111260.0,0.27524915]
[1752096459966,0.40985989,111270.0,111260.0,0.08650208]
[1752096461181,0.40985989,111270.0,111260.0,0.03650208]
[1752096461532,0.40985989,111270.0,111260.0,0.23423702]
[1752096461733,0.40985989,111270.0,111260.0,0.04549003]
[1752096461948,0.40985989,111270.0,111260.0,0.24197879]
[1752096462148,0.40985989,111270.0,111260.0,0.0532318]
[1752096463086,0.40985989,111270.0,111260.0,0.23299092]
[1752096463233,0.40985989,111270.0,111260.0,0.24197887]
[1752096464049,0.40985989,111270.0,111260.0,0.0532318]
[1752096464248,0.40985989,111270.0,111260.0,0.06221975]
[1752096464612,0.40985989,111270.0,111260.0,0.0532318]
[1752096464747,0.40985989,111270.0,111260.0,0.24197879]
[1752096464956,0.40985989,111270.0,111260.0,0.0532318]
[1752096467422,0.27117989,111270.0,111260.0,0.23299092]
[1752096467585,0.40981989,111270.0,111260.0,0.54747837]
[1752096467787,0.40981989,111270.0,111260.0,0.3587313]
[1752096468789,0.40981989,111270.0,111260.0,0.35861274]
[1752096469369,0.40981989,111270.0,111260.0,0.53837186]
[1752096469780,0.40981989,111270.0,111260.0,0.05311324]
[1752096470779,0.40981989,111270.0,111260.0,0.23287236]
[1752096470951,0.40981989,111270.0,111260.0,0.24186023]
[1752096471762,0.40981989,111270.0,111260.0,0.05311324]
[1752096471960,0.40981989,111270.0,111260.0,0.05018324]
[1752096472161,0.40981989,111270.0,111260.0,0.02698324]
[1752096472387,0.40981989,111270.0,111260.0,0.1066994]
[1752096472388,0.40105109,111270.0,111260.0,0.1066994]
[1752096473129,0.40105109,111270.0,111260.0,0.28645852]
[1752096473541,0.40101109,111270.0,111260.0,0.28645852]
[1752096474093,0.40101109,111270.0,111260.0,0.29544647]
[1752096475099,0.40101109,111270.0,111260.0,0.1066994]
[1752096476305,0.40101109,111270.0,111260.0,0.28645852]
[1752096476759,0.40101109,111270.0,111260.0,0.31904647]
[1752096476960,0.18869587,111290.0,111280.0,0.23108681]
[1752096477190,0.18869587,111290.0,111280.0,0.65184796]
[1752096477191,0.33624116,111290.0,111280.0,0.65184796]
[1752096477524,0.33624116,111290.0,111280.0,0.66981974]
[1752096477525,0.16551546,111290.0,111280.0,0.66981974]
[1752096477751,0.35421149,111290.0,111280.0,0.64408894]
[1752096477977,0.17450083,111290.0,111280.0,0.66985152]
[1752096478163,0.18648628,111290.0,111280.0,0.66985152]
[1752096478385,0.15953017,111290.0,111280.0,0.66985152]
[1752096478783,0.17051554,111290.0,111280.0,0.66985152]
[1752096478933,0.03195554,111290.0,111280.0,0.66985152]